bitfinex-derivatives/quotes_BTCF0:USTF0_20250722
["timestamp","ask_amount","ask_price","bid_price","bid_amount"]
[1753152928350,0.114,117210.0,117200.0,1.395806]
[1753152928655,0.114,117210.0,117200.0,1.73438374]
[1753152929155,0.004,117210.0,117200.0,1.73438374]
[1753152929855,0.004,117210.0,117200.0,1.395806]
[1753152930057,0.1745414,117210.0,117200.0,1.73438374]
[1753152930247,0.1745414,117210.0,117200.0,2.03078374]
[1753152930248,0.004,117210.0,117200.0,2.03078374]
[1753152930557,0.1745414,117210.0,117200.0,2.03078374]
[1753152931342,0.2845414,117210.0,117200.0,1.692206]
[1753152936251,0.79969914,117210.0,117200.0,1.20645]
[1753152936456,0.79969914,117210.0,117200.0,1.6912878]
[1753152936457,0.81628914,117210.0,117200.0,1.6912878]
[1753152936657,0.79969914,117210.0,117200.0,1.6912878]
[1753152937152,0.4611214,117210.0,117200.0,1.6912878]
[1753152937353,0.3665714,117210.0,117200.0,1.6912878]
[1753152937658,0.3575614,117210.0,117200.0,1.6912878]
[1753152939059,0.4611214,117210.0,117200.0,1.20645]
[1753152939357,0.4611214,117210.0,117200.0,1.7107678]
[1753152939553,0.79969914,117210.0,117200.0,0.86565]
[1753152939750,0.81628914,117210.0,117200.0,0.51313]
[1753152939949,0.81628914,117210.0,117200.0,0.66313]
[1753152940249,0.81628914,117210.0,117200.0,0.8194]
[1753152940456,0.81628914,117210.0,117200.0,0.25905758]
[1753152940660,0.81628914,117210.0,117200.0,0.20026758]
[1753152940854,0.81628914,117210.0,117200.0,0.19155758]
[1753152942764,1.17708914,117210.0,117200.0,0.19155758]
[1753152942951,1.17708914,117210.0,117200.0,0.161]
[1753152943152,1.17708914,117210.0,117200.0,0.001]
[1753152944363,0.3616579,117200.0,117190.0,0.03055758]
[1753152944656,1.49411564,117200.0,117190.0,0.35055758]
[1753152945664,1.49411564,117200.0,117190.0,0.52112998]
[1753152945865,1.1555379,117200.0,117190.0,0.59248998]
[1753152946060,1.49411564,117200.0,117190.0,0.59248998]
[1753152946463,1.49511564,117200.0,117190.0,0.59348998]
[1753152947766,1.18203564,117200.0,117190.0,0.42291758]
[1753152947967,1.49491564,117200.0,117190.0,0.42291758]
[1753152948461,1.1563379,117200.0,117190.0,0.35155758]
[1753152948765,1.49491564,117200.0,117190.0,0.35155758]
[1753152948969,1.18203564,117200.0,117190.0,0.35155758]
[1753152949163,1.49471564,117200.0,117190.0,0.35155758]
[1753152949365,1.18203564,117200.0,117190.0,0.321]
[1753152949667,1.49515564,117200.0,117190.0,0.321]
[1753152951269,1.73356526,117200.0,117190.0,0.321]
[1753152952271,1.90422126,117200.0,117190.0,0.321]
[1753152952467,0.3204071,117180.0,117170.0,0.57628758]
[1753152952775,0.78018078,117180.0,117170.0,0.45135758]
[1753152953070,1.09638078,117180.0,117170.0,0.15876229]
[1753152953274,1.1461115,117180.0,117170.0,0.15876229]
[1753152953661,0.0426545,117160.0,117140.0,0.06111516]
[1753152953865,0.6240552,117150.0,117140.0,0.17278516]
[1753152954065,1.0948552,117150.0,117140.0,0.11167]
[1753152954371,1.0948552,117150.0,117140.0,0.09464]
[1753152954561,0.2340754,117140.0,117130.0,0.11167]
[1753152954766,1.0948698,117140.0,117130.0,0.47464]
[1753152955070,1.4108698,117140.0,117130.0,0.47464]
[1753152955871,1.0948698,117140.0,117130.0,0.6452999]
[1753152956173,0.7526754,117140.0,117130.0,0.7365899]
[1753152956374,1.0677998,117140.0,117130.0,0.7365899]
[1753152957076,1.1170898,117140.0,117130.0,0.56593]
[1753152957666,1.0677998,117140.0,117130.0,0.7365899]
[1753152958562,1.0677998,117140.0,117130.0,0.56593]
[1753152958764,1.0852898,117140.0,117130.0,0.56593]
[1753152958970,1.1170898,117140.0,117130.0,0.56593]
[1753152959173,1.1170898,117140.0,117130.0,0.7365899]
[1753152960374,0.7118754,117140.0,117130.0,0.7365899]
[1753152960564,1.0500998,117140.0,117130.0,1.0520299]
[1753152960762,0.1259,117140.0,117130.0,1.0520299]
[1753152960968,0.007,117140.0,117130.0,1.7510543]
[1753152961168,0.007,117140.0,117130.0,1.4128299]
[1753152961169,0.047,117140.0,117130.0,1.4128299]
[1753152961578,0.5647697,117140.0,117130.0,1.0973899]
[1753152961783,1.0598297,117140.0,117130.0,0.20593]
[1753152961968,1.0598297,117140.0,117130.0,0.3765899]
[1753152962169,1.0423397,117140.0,117130.0,0.20593]
[1753152962368,1.0598297,117140.0,117130.0,0.20593]
[1753152962780,1.0598297,117140.0,117130.0,0.12373]
[1753152962983,1.0598297,117140.0,117130.0,0.11564]
[1753152963678,1.0598297,117140.0,117130.0,0.2862999]
[1753152963868,1.0598297,117140.0,117130.0,0.13267]
[1753152964274,1.0598297,117140.0,117130.0,0.11564]
[1753152964471,1.0598297,117140.0,117130.0,0.001]
[1753152964671,0.1795745,117120.0,117110.0,0.07136]
[1753152964875,1.1228589,117120.0,117110.0,0.41464]
[1753152965470,1.2936349,117120.0,117110.0,0.32]
[1753152965769,0.313849,117110.0,117100.0,0.33426666]
[1753152965971,0.313849,117110.0,117100.0,0.71426666]
[1753152965972,0.7720734,117110.0,117100.0,0.71426666]
[1753152966281,1.1328734,117110.0,117100.0,0.72235666]
[1753152966578,1.1328734,117110.0,117100.0,0.73938666]
[1753152967182,1.1328734,117110.0,117100.0,0.56868366]
[1753152967377,1.1328734,117110.0,117100.0,0.73938726]
[1753152967576,1.1338734,117110.0,117100.0,0.74138726]
[1753152968182,0.795649,117110.0,117100.0,0.74138726]
[1753152968380,0.728659,117110.0,117100.0,0.80655726]
[1753152968983,1.1163834,117110.0,117100.0,0.63585366]
[1753152969287,1.1163834,117110.0,117100.0,0.80655726]
[1753152969782,1.0845834,117110.0,117100.0,0.80655726]
[1753152970583,1.0875834,117110.0,117100.0,0.63485366]
[1753152970779,1.1193834,117110.0,117100.0,0.63485366]
[1753152970978,0.781159,117110.0,117100.0,0.63485366]
[1753152971181,1.1193834,117110.0,117100.0,0.63485366]
[1753152971687,1.0875834,117110.0,117100.0,0.80555726]
[1753152972086,1.0875834,117110.0,117100.0,0.63485366]
[1753152972387,1.0875834,117110.0,117100.0,0.80555726]
[1753152972582,1.0026134,117110.0,117100.0,0.80655726]
[1753152972788,0.664389,117110.0,117100.0,0.80655726]
[1753152972987,1.0026134,117110.0,117100.0,0.80655726]
[1753152973178,0.95323388,117110.0,117100.0,0.80655726]
[1753152973379,0.95523388,117110.0,117100.0,0.80555726]
[1753152974179,0.95523388,117110.0,117100.0,0.7366336]
[1753152974577,0.666389,117110.0,117100.0,0.7366336]
[1753152974773,0.95523388,117110.0,117100.0,0.7366336]
[1753152974988,0.666389,117110.0,117100.0,0.7366336]
[1753152975178,1.02093388,117110.0,117100.0,0.7366336]
[1753152977985,0.94633388,117110.0,117100.0,0.7366336]
[1753152978286,0.2966889,117110.0,117100.0,1.38627848]
[1753152978692,0.2966889,117110.0,117100.0,1.0974336]
[1753152978879,0.59415378,117110.0,117100.0,0.56593]
[1753152979075,0.65868378,117110.0,117100.0,1.0524735]
[1753152979777,0.65868378,117110.0,117100.0,0.56593]
[1753152979978,1.06778378,117110.0,117100.0,0.88173]
[1753152980188,1.08429378,117110.0,117100.0,0.88173]
[1753152980383,1.08429378,117110.0,117100.0,0.56593]
[1753152980585,1.08429378,117110.0,117100.0,0.37593]
[1753152980785,1.08429378,117110.0,117100.0,0.28564]
[1753152980981,1.08429378,117110.0,117100.0,0.04131]
[1753152981290,0.1707035,117100.0,117090.0,0.10621]
[1753152981486,0.179338,117090.0,117080.0,0.10709956]
[1753152981682,0.179338,117090.0,117080.0,0.44709956]
[1753152981683,1.12664078,117090.0,117080.0,0.44709956]
[1753152982187,1.12664078,117090.0,117080.0,0.61783216]
[1753152982487,1.08053078,117090.0,117080.0,0.71348216]
[1753152982683,0.99880078,117090.0,117080.0,0.72211615]
[1753152982886,0.63800078,117090.0,117080.0,0.72211615]
[1753152983290,0.299338,117090.0,117080.0,0.72211615]
[1753152983584,0.291718,117090.0,117080.0,0.72311615]
[1753152984486,0.121,117090.0,117080.0,0.72311615]
[1753152984686,0.121,117090.0,117080.0,1.08391615]
[1753152985090,0.001,117090.0,117080.0,1.08391615]
[1753152985592,0.071,117090.0,117080.0,1.08391615]
[1753152985898,0.071,117090.0,117080.0,1.15274489]
[1753152986684,0.241718,117090.0,117080.0,1.15274489]
[1753152986991,0.071,117090.0,117080.0,1.15274489]
[1753152987689,0.241718,117090.0,117080.0,1.15274489]
[1753152987891,0.58038078,117090.0,117080.0,1.4590709]
[1753152988090,0.58900078,117090.0,117080.0,1.4590709]
[1753152988290,0.65292078,117090.0,117080.0,1.4590709]
[1753152988594,0.65292078,117090.0,117080.0,1.46757627]
[1753152989186,0.314258,117090.0,117080.0,1.46757627]
[1753152989387,0.65292078,117090.0,117080.0,1.46757627]
[1753152989587,0.65292078,117090.0,117080.0,1.4590709]
[1753152989992,0.67073078,117090.0,117080.0,0.6125783]
[1753152990295,1.07764078,117090.0,117080.0,0.9275383]
[1753152991088,1.07764078,117090.0,117080.0,1.0982709]
[1753152993193,1.06151078,117090.0,117080.0,1.0982709]
[1753152995189,0.722848,117090.0,117080.0,1.0982709]
[1753152995393,1.06151078,117090.0,117080.0,1.0982709]
[1753152996998,1.07764078,117090.0,117080.0,0.9274983]
[1753152997189,0.738978,117090.0,117080.0,1.09823]
[1753152997394,1.07764078,117090.0,117080.0,1.09823]
[1753152997593,1.05183078,117090.0,117080.0,1.06852]
[1753152998196,0.692868,117090.0,117080.0,1.06852]
[1753152998397,1.06151078,117090.0,117080.0,0.9274983]
[1753152998694,1.07764078,117090.0,117080.0,0.8702183]
[1753152998889,1.07764078,117090.0,117080.0,0.5552983]
[1753152999093,1.07764078,117090.0,117080.0,0.5255883]
[1753152999297,1.07764078,117090.0,117080.0,0.5169283]
[1753152999799,1.07764078,117090.0,117080.0,0.6876599]
[1753153000000,1.07764078,117090.0,117080.0,0.7051699]
[1753153000300,1.07764078,117090.0,117080.0,0.7138299]
[1753153000793,0.738978,117090.0,117080.0,0.7435399]
[1753153000999,1.07764078,117090.0,117080.0,0.7833099]
[1753153001196,1.02799098,117090.0,117080.0,0.7833099]
[1753153002098,0.60327018,117090.0,117080.0,1.1441099]
[1753153002801,0.62108018,117090.0,117080.0,0.7833099]
[1753153002997,0.62108018,117090.0,117080.0,0.6125783]
[1753153003197,0.65106018,117090.0,117080.0,0.8835683]
[1753153003502,1.02799018,117090.0,117080.0,0.6125783]
[1753153003703,1.34251018,117090.0,117080.0,0.6125783]
[1753153003904,1.63152316,117090.0,117080.0,0.6125783]
[1753153004206,1.63152316,117090.0,117080.0,0.5552983]
[1753153004405,1.63152316,117090.0,117080.0,0.5169283]
[1753153004602,1.34251018,117090.0,117080.0,0.5169283]
[1753153004998,1.63152316,117090.0,117080.0,0.44709956]
[1753153005199,1.63152316,117090.0,117080.0,0.44809956]
[1753153005200,1.34551018,117090.0,117080.0,0.44809956]
[1753153005705,1.34515018,117090.0,117080.0,0.69429136]
[1753153005898,1.32902018,117090.0,117080.0,0.71166136]
[1753153006606,0.96822018,117090.0,117080.0,0.71166136]
[1753153007713,0.96822018,117090.0,117080.0,0.71178716]
[1753153008115,0.96822018,117090.0,117080.0,0.77877993]
[1753153008413,0.98312018,117090.0,117080.0,0.77877993]
[1753153008813,0.6941072,117090.0,117080.0,0.77877993]
[1753153009003,0.62408018,117090.0,117080.0,0.77877993]
[1753153009414,0.62408018,117090.0,117080.0,1.13957993]
[1753153009913,0.65241018,117090.0,117080.0,1.13957993]
[1753153010107,0.65241018,117090.0,117080.0,0.77877993]
[1753153010714,0.62408018,117090.0,117080.0,0.77877993]
[1753153011105,0.62408018,117090.0,117080.0,1.13957993]
[1753153011716,0.62408018,117090.0,117080.0,0.77877993]
[1753153011918,0.3350672,117090.0,117080.0,0.77877993]
[1753153012116,0.62408018,117090.0,117080.0,0.77877993]
[1753153013516,0.3350672,117090.0,117080.0,0.77877993]
[1753153013821,0.62408018,117090.0,117080.0,0.77877993]
[1753153014923,0.62408018,117090.0,117080.0,0.60804813]
[1753153015412,0.66731018,117090.0,117080.0,0.60804813]
[1753153015616,1.31712316,117090.0,117080.0,0.44822536]
[1753153016514,1.33404169,117090.0,117080.0,0.44822536]
[1753153017517,1.64680169,117090.0,117080.0,0.46559536]
[1753153017719,1.33404169,117090.0,117080.0,0.12559536]
[1753153017911,1.64680169,117090.0,117080.0,0.12559536]
[1753153018721,1.64680169,117090.0,117080.0,0.10822536]
[1753153020422,1.64680169,117090.0,117080.0,0.12559536]
[1753153020623,1.35778871,117090.0,117080.0,0.12559536]
[1753153020918,1.00179871,117090.0,117080.0,0.37178716]
[1753153021120,0.09953853,117090.0,117080.0,0.74178716]
[1753153021320,0.37993151,117090.0,117080.0,0.37178716]
[1753153021519,1.33605169,117090.0,117080.0,0.00201536]
[1753153021721,1.50686769,117090.0,117080.0,0.00201536]
[1753153021918,0.3063363,117070.0,117060.0,0.2980502]
[1753153022120,0.71226781,117070.0,117060.0,0.6947602]
[1753153022421,0.71226781,117070.0,117060.0,0.524]
[1753153022616,0.71226781,117070.0,117060.0,0.59388729]
[1753153023322,0.71226781,117070.0,117060.0,0.524]
[1753153023514,0.71226781,117070.0,117060.0,1.0555609]
[1753153023710,0.3206769,117070.0,117060.0,1.0555609]
[1753153023915,0.1169106,117070.0,117060.0,1.0555609]
[1753153024522,0.2876569,117070.0,117060.0,1.0555609]
[1753153025131,0.2886569,117070.0,117060.0,1.0565609]
[1753153025520,0.1179106,117070.0,117060.0,1.0565609]
[1753153026025,0.1179106,117070.0,117060.0,1.4774089]
[1753153027014,0.1179106,117070.0,117060.0,1.55364672]
[1753153027219,0.1179106,117070.0,117060.0,1.30364672]
[1753153027423,0.1179106,117070.0,117060.0,1.30464672]
[1753153028032,0.101,117070.0,117060.0,1.35031792]
[1753153028533,0.01785275,117070.0,117060.0,1.35031792]
[1753153029020,0.50939607,117090.0,117080.0,0.3473622]
[1753153029221,0.11,117090.0,117080.0,0.6764122]
[1753153029518,0.2807176,117090.0,117080.0,0.6764122]
[1753153030031,0.61939567,117090.0,117080.0,0.6764122]
[1753153030229,0.62039567,117090.0,117080.0,0.6764122]
[1753153030430,0.62039567,117090.0,117080.0,0.70713303]
[1753153030932,0.2817176,117090.0,117080.0,0.70713303]
[1753153031129,0.62039567,117090.0,117080.0,0.70713303]
[1753153031433,0.62239567,117090.0,117080.0,0.70813303]
[1753153032034,0.2837176,117090.0,117080.0,0.70813303]
[1753153032334,0.62239567,117090.0,117080.0,0.70813303]
[1753153032830,0.63158567,117090.0,117080.0,0.70813303]
[1753153033530,0.71475567,117090.0,117080.0,0.22572083]
[1753153033733,1.11878567,117090.0,117080.0,0.22572083]
[1753153034030,1.11878567,117090.0,117080.0,0.16970083]
[1753153034332,1.11878567,117090.0,117080.0,0.3670025]
[1753153034630,1.11878567,117090.0,117080.0,0.7070025]
[1753153034831,1.05712567,117090.0,117080.0,0.7070025]
[1753153035331,0.54773,117090.0,117080.0,0.7070025]
[1753153035532,0.113,117090.0,117080.0,1.09852333]
[1753153035932,0.113,117090.0,117080.0,1.08977333]
[1753153036828,0.113,117090.0,117080.0,1.09855333]
[1753153037534,0.113,117090.0,117080.0,1.1135037]
[1753153038923,0.113,117090.0,117080.0,1.45218177]
[1753153039233,0.1706894,117110.0,117100.0,0.3669833]
[1753153039433,0.63936747,117110.0,117100.0,0.6777033]
[1753153039629,0.64773747,117110.0,117100.0,0.6777033]
[1753153040628,0.65273747,117110.0,117100.0,0.6787033]
[1753153041537,0.64773677,117110.0,117100.0,0.6777033]
[1753153041735,0.65173677,117110.0,117100.0,0.6787033]
[1753153041938,0.65373677,117110.0,117100.0,0.6787033]
[1753153042339,0.3150587,117110.0,117100.0,0.6787033]
[1753153042538,0.65173677,117110.0,117100.0,0.6787033]
[1753153042738,0.65273677,117110.0,117100.0,0.6787033]
[1753153044939,0.65273717,117110.0,117100.0,0.6787033]
[1753153045135,0.43223169,117110.0,117100.0,0.6787033]
[1753153045439,0.005,117110.0,117100.0,1.63836499]
[1753153046029,0.005,117110.0,117100.0,1.3495033]
[1753153046834,0.59455079,117110.0,117100.0,1.0395033]
[1753153047841,0.42386169,117110.0,117100.0,0.7287833]
[1753153048030,0.135,117110.0,117100.0,1.06892022]
[1753153048236,0.42386169,117110.0,117100.0,1.06892022]
[1753153048743,0.59455079,117110.0,117100.0,1.06892022]
[1753153049044,0.42386169,117110.0,117100.0,1.06892022]
[1753153049246,0.59455079,117110.0,117100.0,1.06892022]
[1753153049445,0.59455079,117110.0,117100.0,1.06868022]
[1753153050552,0.42386169,117110.0,117100.0,1.06868022]
[1753153050843,0.41986169,117110.0,117100.0,1.06868022]
[1753153051038,0.41986169,117110.0,117100.0,1.42868022]
[1753153051245,0.41986169,117110.0,117100.0,1.06868022]
[1753153051443,0.131,117110.0,117100.0,1.40868022]
[1753153051646,0.41986169,117110.0,117100.0,1.06868022]
[1753153052142,0.131,117110.0,117100.0,1.41868022]
[1753153052344,0.5314625,117130.0,117120.0,0.1706745]
[1753153052537,0.87869419,117130.0,117120.0,0.6754345]
[1753153052947,0.05837,117130.0,117120.0,1.0362345]
[1753153053246,0.33886169,117130.0,117120.0,1.0362345]
[1753153053446,0.05,117130.0,117120.0,1.0362345]
[1753153053744,0.50952159,117130.0,117120.0,1.0362345]
[1753153053947,0.51152159,117130.0,117120.0,1.0362345]
[1753153054140,0.51652159,117130.0,117120.0,1.1047022]
[1753153054345,0.52489159,117130.0,117120.0,1.1047022]
[1753153054546,0.52489159,117130.0,117120.0,1.11310686]
[1753153054737,0.94510159,117130.0,117120.0,0.75230686]
[1753153054939,0.6737499,117130.0,117120.0,0.75230686]
[1753153055137,0.6717499,117130.0,117120.0,0.75230686]
[1753153055345,0.95761159,117130.0,117120.0,0.75230686]
[1753153057445,0.94010159,117130.0,117120.0,0.75230686]
[1753153058241,0.57930159,117130.0,117120.0,1.11310686]
[1753153058839,0.57930159,117130.0,117120.0,0.75230686]
[1753153059145,0.57930159,117130.0,117120.0,1.11310686]
[1753153059540,0.57930159,117130.0,117120.0,1.07271686]
[1753153059941,0.57930159,117130.0,117120.0,0.80462686]
[1753153061144,0.57930159,117130.0,117120.0,1.42142686]
[1753153062951,0.54070159,117130.0,117120.0,1.32202686]
[1753153063152,0.57930159,117130.0,117120.0,1.38103686]
[1753153063854,0.55849159,117130.0,117120.0,1.38103686]
[1753153064042,0.2696299,117130.0,117120.0,1.38103686]
[1753153064449,0.55849159,117130.0,117120.0,1.38103686]
[1753153064751,0.51989159,117130.0,117120.0,1.38103686]
[1753153066651,0.51989159,117130.0,117120.0,1.02023686]
[1753153066853,0.2310299,117130.0,117120.0,1.38103686]
[1753153067054,0.51989159,117130.0,117120.0,1.38103686]
[1753153067854,0.57937159,117130.0,117120.0,1.02023686]
[1753153068750,0.57937159,117130.0,117120.0,0.2640077]
[1753153068751,0.99582159,117130.0,117120.0,0.2640077]
[1753153068954,1.28468328,117130.0,117120.0,0.8799277]
[1753153069251,1.28468328,117130.0,117120.0,0.8630277]
[1753153069654,1.28468328,117130.0,117120.0,0.8807177]
[1753153070049,0.99582159,117130.0,117120.0,0.8807177]
[1753153070255,0.99582159,117130.0,117120.0,1.0513922]
[1753153070455,0.99582159,117130.0,117120.0,0.8807177]
[1753153070653,1.28468328,117130.0,117120.0,0.8807177]
[1753153071153,0.99582159,117130.0,117120.0,0.8807177]
[1753153071553,1.00447259,117130.0,117120.0,0.8807177]
[1753153071748,1.28468328,117130.0,117120.0,0.8807177]
[1753153072053,1.28468328,117130.0,117120.0,0.1697677]
[1753153072254,1.90060328,117130.0,117120.0,0.1107577]
[1753153072456,1.90060328,117130.0,117120.0,0.0684677]
[1753153073050,1.90060328,117130.0,117120.0,0.001]
[1753153073749,1.90060328,117130.0,117110.0,0.10043]
[1753153073750,0.1706745,117120.0,117110.0,0.10043]
[1753153073951,0.2392091,117110.0,117100.0,0.11812]
[1753153074147,0.2392091,117110.0,117080.0,0.51954062]
[1753153074148,0.08524,117090.0,117080.0,0.19538]
[1753153074348,0.65809989,117090.0,117080.0,1.1120328]
[1753153074551,0.3007182,117090.0,117080.0,1.1120328]
[1753153074753,0.58957989,117090.0,117080.0,1.3520328]
[1753153075065,0.58957989,117090.0,117080.0,1.1020328]
[1753153075451,0.58957989,117090.0,117080.0,1.4628328]
[1753153075652,0.41986169,117090.0,117080.0,1.4638328]
[1753153075960,0.59057989,117090.0,117080.0,1.7238328]
[1753153078053,0.59961989,117090.0,117080.0,1.7238328]
[1753153078260,0.65909989,117090.0,117080.0,1.7238328]
[1753153078451,0.4258882,117090.0,117080.0,0.95234]
[1753153078761,0.71474989,117090.0,117080.0,1.1230728]
[1753153078960,1.07554989,117090.0,117080.0,1.13234]
[1753153079264,1.69150989,117090.0,117080.0,0.24143]
[1753153080053,1.69150989,117090.0,117080.0,0.10143]
[1753153080455,1.69150989,117090.0,117080.0,0.2988728]
[1753153080657,1.01989989,117090.0,117080.0,0.3671128]
[1753153080960,0.96041989,117090.0,117080.0,0.3671128]
[1753153081261,1.01989989,117090.0,117080.0,0.9830728]
[1753153081655,1.06249989,117090.0,117080.0,0.81234]
[1753153081855,1.07554989,117090.0,117080.0,0.11045]
[1753153082155,1.07554989,117090.0,117080.0,0.10143]
[1753153082661,0.7866882,117090.0,117080.0,0.12814]
[1753153082861,0.7736382,117090.0,117080.0,0.3671128]
[1753153083167,1.06249989,117090.0,117080.0,0.19638]
[1753153083355,1.07554989,117090.0,117080.0,0.19638]
[1753153083752,1.36441158,117090.0,117080.0,0.15673]
[1753153084059,1.36441158,117090.0,117080.0,0.001]
[1753153084456,1.07554989,117090.0,117080.0,0.10143]
[1753153084663,1.07554989,117090.0,117080.0,0.3671128]
[1753153084857,1.68329989,117090.0,117080.0,0.3671128]
[1753153085356,0.96041989,117090.0,117080.0,0.3671128]
[1753153085562,1.22073989,117090.0,117080.0,0.7279128]
[1753153086159,1.59825989,117090.0,117080.0,0.19638]
[1753153086358,1.63718989,117090.0,117080.0,0.19638]
[1753153086558,1.92605158,117090.0,117080.0,0.10143]
[1753153086759,1.92605158,117090.0,117080.0,0.001]
[1753153087157,0.2949028,117080.0,117070.0,0.10043]
[1753153087359,1.36342618,117080.0,117070.0,0.10043]
[1753153088759,0.7857028,117080.0,117070.0,0.10343]
[1753153088963,1.36442618,117080.0,117070.0,0.10343]
[1753153089459,1.36442618,117080.0,117070.0,0.12112]
[1753153089966,1.98618618,117080.0,117070.0,0.19838]
[1753153091271,1.07556449,117080.0,117070.0,0.19838]
[1753153091462,1.3524928,117080.0,117070.0,0.3691273]
[1753153091662,1.64135449,117080.0,117070.0,0.3691273]
[1753153091864,0.7310528,117080.0,117070.0,0.3691273]
[1753153092064,1.01991449,117080.0,117070.0,0.3691273]
[1753153092465,0.14004,117080.0,117070.0,0.7299273]
[1753153092668,0.59059439,117080.0,117070.0,0.7299273]
[1753153092866,0.3017327,117080.0,117070.0,0.7299273]
[1753153093070,0.59059439,117080.0,117070.0,0.7299273]
[1753153093269,0.3017327,117080.0,117070.0,0.7299273]
[1753153093665,0.3017327,117080.0,117070.0,1.0599273]
[1753153094370,0.131,117080.0,117070.0,1.6812873]
[1753153094673,0.64038862,117080.0,117070.0,1.3512873]
[1753153095378,0.3017328,117080.0,117070.0,1.3512873]
[1753153095569,0.64038862,117080.0,117070.0,1.3512873]
[1753153096175,0.3017328,117080.0,117070.0,1.3512873]
[1753153096374,0.64038862,117080.0,117070.0,1.3512873]
[1753153097272,0.46965582,117080.0,117070.0,1.3512873]
[1753153097469,0.131,117080.0,117070.0,1.3512873]
[1753153097674,0.46965582,117080.0,117070.0,1.3512873]
[1753153097878,0.131,117080.0,117070.0,1.3512873]
[1753153098071,0.131,117080.0,117070.0,1.7312873]
[1753153098468,0.131,117080.0,117070.0,1.3512873]
[1753153099378,0.131,117080.0,117070.0,1.38198422]
[1753153099563,0.3017327,117080.0,117070.0,1.38198422]
[1753153099770,0.64038852,117080.0,117070.0,1.38198422]
[1753153100471,0.64038852,117080.0,117070.0,1.3512873]
[1753153100673,0.70381852,117080.0,117070.0,1.3512873]
[1753153100877,0.70381852,117080.0,117070.0,0.9904873]
[1753153101076,0.70381852,117080.0,117070.0,0.19838]
[1753153101277,0.75591852,117080.0,117070.0,0.9912873]
[1753153101675,1.11671852,117080.0,117070.0,0.10343]
[1753153102072,1.11671852,117080.0,117070.0,0.2741773]
[1753153102782,1.11671852,117080.0,117070.0,0.3666773]
[1753153103683,1.4002227,117080.0,117070.0,0.3666773]
[1753153104076,1.37807852,117080.0,117070.0,0.39737422]
[1753153104871,1.73887852,117080.0,117070.0,0.10173692]
[1753153105077,0.2341773,117070.0,117060.0,0.13277692]
[1753153105375,1.11573312,117070.0,117060.0,0.68988882]
[1753153105582,1.11573312,117070.0,117060.0,0.69833882]
[1753153105876,1.11573312,117070.0,117060.0,0.52757692]
[1753153106476,0.7780773,117070.0,117060.0,0.52957692]
[1753153106782,1.11673312,117070.0,117060.0,0.52957692]
[1753153106982,0.7780773,117070.0,117060.0,0.70033872]
[1753153107177,1.11673312,117070.0,117060.0,0.70033872]
[1753153107384,0.7780773,117070.0,117060.0,0.15957692]
[1753153107584,1.11673312,117070.0,117060.0,0.15957692]
[1753153107883,1.11673312,117070.0,117060.0,0.33033872]
[1753153108083,0.7780773,117070.0,117060.0,0.33033872]
[1753153108284,1.11673312,117070.0,117060.0,0.18922692]
[1753153109173,1.11673312,117070.0,117060.0,0.13577692]
[1753153110084,1.11673312,117070.0,117060.0,0.15212692]
[1753153111078,1.11673312,117070.0,117060.0,0.39903872]
[1753153111277,1.70985312,117070.0,117060.0,0.39903872]
[1753153111480,1.70985312,117070.0,117060.0,0.22827692]
[1753153111679,1.74345312,117070.0,117060.0,0.13577692]
[1753153112386,1.74345312,117070.0,117060.0,0.16057692]
[1753153113986,1.4047973,117070.0,117060.0,0.16057692]
[1753153114192,1.74345312,117070.0,117060.0,0.16057692]
[1753153114586,0.7259773,117070.0,117060.0,0.39903872]
[1753153114787,1.69235312,117070.0,117060.0,0.39903872]
[1753153115189,1.64278247,117070.0,117060.0,0.39903872]
[1753153115488,1.65956247,117070.0,117060.0,0.39903872]
[1753153115789,1.3704773,117070.0,117060.0,0.39903872]
[1753153115990,1.65956247,117070.0,117060.0,0.39903872]
[1753153117894,1.69316247,117070.0,117060.0,0.22827692]
[1753153118290,1.69316247,117070.0,117060.0,0.13577692]
[1753153120089,1.69316247,117070.0,117060.0,0.03369692]
[1753153120492,1.69316247,117070.0,117060.0,0.003]
[1753153120795,1.69316247,117070.0,117060.0,0.10508]
[1753153121496,1.4040773,117070.0,117060.0,0.10508]
[1753153121695,1.69316247,117070.0,117060.0,0.10508]
[1753153121893,1.69316247,117070.0,117060.0,0.15853]
[1753153124197,1.69316247,117070.0,117060.0,0.3292919]
[1753153124401,1.70161825,117070.0,117060.0,0.15853]
[1753153124994,1.70161825,117070.0,117060.0,0.10508]
[1753153126793,1.69316247,117070.0,117060.0,0.10508]
[1753153126992,1.4040773,117070.0,117060.0,0.10508]
[1753153127193,1.69316247,117070.0,117060.0,0.10508]
[1753153128700,1.4040773,117070.0,117060.0,0.14286]
[1753153128901,0.7225429,117070.0,117060.0,0.3681425]
[1753153129196,0.3187635,117070.0,117060.0,0.3681425]
[1753153129396,0.1480156,117070.0,117060.0,1.0489425]
[1753153129598,0.3187635,117070.0,117060.0,1.0489425]
[1753153129797,0.1480156,117070.0,117060.0,1.6799825]
[1753153130600,0.1480156,117070.0,117060.0,1.7256537]
[1753153130601,0.131,117070.0,117060.0,1.7256537]
[1753153130795,0.59083307,117070.0,117060.0,1.7256537]
[1753153131104,0.42008517,117070.0,117060.0,1.7256537]
[1753153131406,0.59083307,117070.0,117060.0,1.7256537]
[1753153131706,0.3017479,117070.0,117060.0,1.7256537]
[1753153132307,0.131,117070.0,117060.0,1.7256537]
[1753153132799,0.87136677,117100.0,117090.0,0.3632487]
[1753153133004,1.01839344,117100.0,117090.0,0.3632487]
[1753153133598,0.72930827,117100.0,117090.0,0.3632487]
[1753153133798,0.61491734,117100.0,117090.0,0.7240487]
[1753153134000,0.60682734,117100.0,117090.0,0.7240487]
[1753153134305,0.14702667,117100.0,117090.0,0.7240487]
[1753153134707,0.44111184,117100.0,117090.0,0.7240487]
[1753153134897,0.61181604,117100.0,117090.0,0.7240487]
[1753153135298,0.15202667,117100.0,117090.0,0.7240487]
[1753153135503,0.15102667,117100.0,117090.0,0.7240487]
[1753153135704,0.14802667,117100.0,117090.0,0.7250487]
[1753153136104,0.14802667,117100.0,117090.0,0.73357172]
[1753153136408,0.131,117100.0,117090.0,0.73357172]
[1753153136706,0.131,117100.0,117090.0,0.76426872]
[1753153137318,0.3017042,117100.0,117090.0,0.73357172]
[1753153137812,0.64023652,117100.0,117090.0,0.73357172]
[1753153138003,0.46953232,117100.0,117090.0,0.73357172]
[1753153138200,0.131,117100.0,117090.0,0.73357172]
[1753153138407,0.46953232,117100.0,117090.0,0.80235744]
[1753153139007,0.3017042,117100.0,117090.0,0.80235744]
[1753153139209,0.64023652,117100.0,117090.0,0.80235744]
[1753153140010,0.46953232,117100.0,117090.0,0.80235744]
[1753153140207,0.66432642,117100.0,117090.0,0.80235744]
[1753153140508,0.66432642,117100.0,117090.0,1.42915442]
[1753153140509,0.71646642,117100.0,117090.0,1.42915442]